bitfinex-derivatives/quotes_SOLF0:USTF0_20260304
["timestamp","ask_amount","ask_price","bid_price","bid_amount"]
[1772641067401,62.48387119,91.76,91.706,9.811]
[1772641068300,68.36141413,91.776,91.716,9.81]
[1772641068799,68.36141413,91.776,91.724,9.809]
[1772641069199,68.36141413,91.776,91.694,59.04210452]
[1772641069400,58.55741413,91.776,91.712,59.26880138]
[1772641071198,58.55741413,91.776,91.74,9.807]
[1772641071595,65.8881231,91.79,91.74,9.807]
[1772641071996,58.55741413,91.79,91.74,9.807]
[1772641072709,58.55741413,91.79,91.747,9.807]
[1772641073602,7.33070897,91.81,91.756,59.26880138]
[1772641074001,65.8881231,91.81,91.711,59.26880138]
[1772641074303,58.55741413,91.808,91.735,59.26880138]
[1772641074701,9.801,91.799,91.744,9.807]
[1772641074903,58.55741413,91.808,91.735,59.26880138]
[1772641075497,7.33070897,91.79,91.711,59.26880138]
[1772641075698,58.55741413,91.804,91.711,59.26880138]
[1772641075898,58.55741413,91.802,91.711,59.26880138]
[1772641076203,58.55741413,91.786,91.721,9.809]
[1772641076401,58.55741413,91.786,91.711,59.26880138]
[1772641076599,68.36041413,91.785,91.728,9.809]
[1772641077401,58.55741413,91.769,91.691,59.26880138]
[1772641078396,9.804,91.768,91.711,9.81]
[1772641078597,54.07216544,91.768,91.691,59.26880138]
[1772641079308,54.07216544,91.761,91.698,9.812]
[1772641079505,54.07216544,91.761,91.691,59.26880138]
[1772641079804,54.07216544,91.759,91.691,59.26880138]
[1772641080006,54.07216544,91.749,91.691,59.26880138]
[1772641080402,54.07216544,91.749,91.693,9.812]
[1772641080599,54.07216544,91.749,91.691,59.26880138]
[1772641081500,54.07216544,91.749,91.702,9.811]
[1772641081703,54.01644513,91.769,91.702,9.811]
[1772641081904,54.01644513,91.767,91.691,59.26880138]
[1772641082210,54.01644513,91.789,91.691,59.26880138]
[1772641082404,54.01644513,91.789,91.711,55.97896466]
[1772641082604,7.33070897,91.81,91.711,55.97896466]
[1772641082809,7.33070897,91.81,91.71,7.33070897]
[1772641082810,54.01644513,91.809,91.74,9.807]
[1772641083010,54.01644513,91.807,91.736,55.97896466]
[1772641083208,13.31762818,91.843,91.692,55.97896466]
[1772641083209,54.01644513,91.769,91.692,55.97896466]
[1772641084202,54.01644513,91.769,91.708,9.811]
[1772641084908,54.01644513,91.769,91.716,9.81]
[1772641085109,54.01644513,91.769,91.692,55.97896466]
[1772641085510,54.01644513,91.769,91.715,9.81]
[1772641085710,54.01644513,91.769,91.692,55.97896466]
[1772641086211,53.92063418,91.767,91.712,9.81]
[1772641086409,7.33070897,91.79,91.692,55.97896466]
[1772641086410,53.92063418,91.765,91.692,55.97896466]
[1772641086610,53.92063418,91.763,91.692,55.97896466]
[1772641086806,61.25134315,91.72,91.651,53.49249712]
[1772641087012,53.92063418,91.699,91.632,53.49249712]
[1772641087412,53.92063418,91.697,91.632,53.49249712]
[1772641088316,53.92063418,91.659,91.56,20.29850842]
[1772641088521,7.33070897,91.6,91.534,53.49249712]
[1772641088711,7.33070897,91.6,91.465,153.024]
[1772641088712,61.25134315,91.6,91.501,53.49249712]
[1772641089011,7.33070897,91.62,91.437,291.59689407]
[1772641089012,53.92063418,91.559,91.495,1.90089145]
[1772641089216,53.92063418,91.58,91.501,53.49249712]
[1772641089415,7.33070897,91.6,91.528,53.49249712]
[1772641090008,53.92063418,91.579,91.506,53.49249712]
[1772641090711,124.0,91.61,91.501,1.90117704]
[1772641090712,53.92063418,91.606,91.511,53.49249712]
[1772641091118,7.33070897,91.6,91.511,53.49249712]
[1772641091319,61.25134315,91.6,91.526,9.83]
[1772641091618,61.25134315,91.6,91.511,53.49249712]
[1772641091819,7.33070897,91.58,91.511,53.49249712]
[1772641092115,53.92063418,91.594,91.511,53.49249712]
[1772641092316,53.92063418,91.617,91.527,53.49249712]
[1772641092520,53.92063418,91.617,91.54,7.33070897]
[1772641092818,53.92063418,91.64,91.572,53.49249712]
[1772641093009,53.92063418,91.64,91.551,53.49249712]
[1772641093010,61.25134315,91.64,91.551,53.49249712]
[1772641093423,53.92063418,91.64,91.551,53.49249712]
[1772641093914,61.25134315,91.64,91.551,53.49249712]
[1772641094117,61.25134315,91.64,91.564,9.826]
[1772641094312,61.25134315,91.64,91.564,63.31849712]
[1772641094620,53.92063418,91.663,91.571,53.49249712]
[1772641094814,53.92063418,91.663,91.59,63.31549712]
[1772641095817,61.25134315,91.68,91.602,53.49249712]
[1772641096016,61.25134315,91.68,91.571,53.49249712]
[1772641096217,53.92063418,91.659,91.571,53.49249712]
[1772641096617,53.92063418,91.659,91.578,9.825]
[1772641096918,53.92063418,91.659,91.53,152.916]
[1772641096919,53.92063418,91.659,91.579,53.49249712]
[1772641097421,53.92063418,91.659,91.589,9.823]
[1772641097621,53.92063418,91.649,91.579,53.49249712]
[1772641098718,52.16545315,91.666,91.583,56.37689377]
[1772641098919,52.16545315,91.649,91.583,56.37689377]
[1772641099220,52.16545315,91.649,91.551,56.37689377]
[1772641099716,7.33070897,91.63,91.551,56.37689377]
[1772641099917,7.33070897,91.63,91.536,9.829]
[1772641099918,52.16545315,91.627,91.536,9.829]
[1772641100318,52.16545315,91.625,91.548,9.828]
[1772641100616,52.16545315,91.625,91.53,56.37689377]
[1772641100917,52.16545315,91.609,91.502,56.37689377]
[1772641101815,52.16545315,91.586,91.502,56.37689377]
[1772641102118,52.16545315,91.569,91.502,56.37689377]
[1772641102314,61.99145315,91.569,91.502,56.37689377]
[1772641102516,52.16545315,91.549,91.477,56.37689377]
[1772641102922,52.16545315,91.549,91.456,56.37689377]
[1772641103117,59.53478477,91.54,91.456,56.37689377]
[1772641103514,59.53478477,91.54,91.43,7.36933162]
[1772641103821,55.75332298,91.519,91.445,1.90212787]
[1772641104020,55.75332298,91.519,91.446,51.79862295]
[1772641104422,55.75332298,91.519,91.46,9.837]
[1772641104717,55.75332298,91.519,91.446,51.79862295]
[1772641105514,55.75332298,91.519,91.449,61.63762295]
[1772641105714,55.75332298,91.519,91.449,51.79862295]
[1772641107121,55.75332298,91.519,91.434,20.25340826]
[1772641107321,63.1226546,91.5,91.434,20.25340826]
[1772641107526,63.1226546,91.5,91.434,10.41340826]
[1772641107924,63.1226546,91.52,91.435,51.79862295]
[1772641108228,63.1226546,91.52,91.45,9.838]
[1772641109126,63.1226546,91.52,91.46,9.837]
[1772641110524,63.1226546,91.52,91.47,9.836]
[1772641110525,55.75332298,91.52,91.47,9.836]
[1772641110924,63.1226546,91.54,91.47,9.836]
[1772641111122,63.1226546,91.54,91.47,61.63462295]
[1772641111320,63.1226546,91.54,91.457,9.838]
[1772641111524,63.1226546,91.5,91.434,10.41340826]
[1772641112826,7.36933162,91.48,91.434,10.41340826]
[1772641113530,55.75332298,91.497,91.434,10.41340826]
[1772641114030,7.36933162,91.48,91.434,10.41340826]
[1772641114230,63.1226546,91.48,91.434,10.41340826]
[1772641115825,7.36933162,91.5,91.434,10.41340826]
[1772641116024,55.75332298,91.502,91.434,62.21203121]
[1772641116225,7.36933162,91.52,91.434,62.21203121]
[1772641116725,63.1226546,91.52,91.466,9.837]
[1772641116926,63.1226546,91.52,91.434,62.21203121]
[1772641117629,152.797,91.602,91.451,51.79862295]
[1772641117819,7.36933162,91.54,91.451,51.79862295]
[1772641118024,7.36933162,91.54,91.471,9.836]
[1772641118229,7.36933162,91.54,91.451,51.79862295]
[1772641118524,7.36933162,91.56,91.451,51.79862295]
[1772641118729,7.36933162,91.56,91.481,51.79862295]
[1772641119322,7.36933162,91.56,91.485,9.835]
[1772641119323,9.827,91.558,91.485,9.835]
[1772641119527,7.36933162,91.56,91.481,51.79862295]
[1772641120329,7.36933162,91.56,91.503,9.833]
[1772641120925,7.36933162,91.56,91.481,51.79862295]
[1772641120926,9.825,91.572,91.512,9.832]
[1772641121132,55.75332298,91.573,91.47,7.36933162]
[1772641121133,55.75332298,91.573,91.501,51.79862295]
[1772641121327,7.36933162,91.58,91.501,51.79862295]
[1772641121530,9.824,91.589,91.523,51.79862295]
[1772641121728,55.75332298,91.588,91.523,51.79862295]
[1772641122032,55.75332298,91.588,91.491,51.79862295]
[1772641122233,55.75332298,91.588,91.522,9.831]
[1772641122624,55.75332298,91.588,91.491,51.79862295]
[1772641123031,55.75332298,91.585,91.522,9.831]
[1772641123425,9.824,91.583,91.511,9.832]
[1772641123632,7.36933162,91.57,91.491,51.79862295]
[1772641123833,55.75332298,91.582,91.491,51.79862295]
[1772641124029,55.75332298,91.582,91.47,7.36933162]
[1772641124030,7.36933162,91.59,91.515,51.79862295]
[1772641124235,55.75332298,91.589,91.515,51.79862295]
[1772641124739,55.75332298,91.569,91.503,9.833]
[1772641125631,9.827,91.559,91.492,9.834]
[1772641125831,55.75332298,91.569,91.481,51.79862295]
[1772641126231,55.75332298,91.541,91.481,51.79862295]
[1772641126431,55.75332298,91.541,91.441,51.79862295]
[1772641126631,55.75332298,91.529,91.441,51.79862295]
[1772641126937,9.832,91.513,91.451,9.838]
[1772641127334,65.58532298,91.513,91.441,61.63762295]
[1772641127542,55.75332298,91.509,91.417,51.79862295]
[1772641127832,55.75332298,91.489,91.417,51.79862295]
[1772641128037,9.836,91.473,91.417,51.79862295]
[1772641128233,55.75332298,91.489,91.418,9.842]
[1772641128441,55.75332298,91.489,91.417,51.79862295]
[1772641128640,61.66396571,91.51,91.417,51.79862295]
[1772641128839,61.66396571,91.51,91.41,7.36933162]
[1772641128840,54.29463409,91.51,91.446,9.839]
[1772641129141,61.66396571,91.53,91.435,53.32298269]
[1772641129437,9.831,91.524,91.458,9.838]
[1772641129632,54.29463409,91.53,91.456,53.32298269]
[1772641129836,61.66396571,91.53,91.456,53.32298269]
[1772641130537,54.29463409,91.53,91.456,53.32298269]
[1772641130941,64.12463409,91.53,91.456,53.32298269]
[1772641131142,54.29463409,91.53,91.436,53.32298269]
[1772641131338,54.29463409,91.519,91.44,9.84]
[1772641132138,61.66396571,91.5,91.43,9.841]
[1772641132441,61.66396571,91.5,91.411,53.32298269]
[1772641132642,54.29463409,91.479,91.411,53.32298269]
[1772641132844,9.836,91.475,91.418,9.842]
[1772641133035,9.836,91.475,91.411,53.32298269]
[1772641133239,54.29463409,91.474,91.411,53.32298269]
[1772641133440,7.36933162,91.46,91.392,53.32298269]
[1772641133744,61.66396571,91.46,91.392,53.32298269]
[1772641135052,61.66396571,91.46,91.402,9.844]
[1772641135247,7.36933162,91.46,91.402,9.844]
[1772641135441,7.36933162,91.48,91.402,53.32298269]
[1772641135742,7.36933162,91.48,91.423,9.841]
[1772641135940,61.66396571,91.5,91.402,53.32298269]
[1772641136746,61.66396571,91.5,91.4,7.36933162]
[1772641136747,9.835,91.484,91.417,53.32298269]
[1772641137151,7.36933162,91.48,91.418,9.842]
[1772641137348,7.36933162,91.48,91.417,53.32298269]
[1772641137743,9.833,91.499,91.435,9.84]
[1772641138247,9.834,91.491,91.425,9.841]
[1772641138946,17.20433162,91.48,91.417,53.32298269]
[1772641139242,54.29463409,91.479,91.393,53.32298269]
[1772641139447,7.36933162,91.44,91.393,53.32298269]
[1772641140246,7.36933162,91.46,91.405,53.32298269]
[1772641140849,54.29463409,91.48,91.405,53.32298269]
[1772641140850,61.66396571,91.48,91.415,9.842]
[1772641141147,61.66396571,91.48,91.405,53.32298269]
[1772641142052,61.66396571,91.48,91.406,9.843]
[1772641142053,9.836,91.47,91.406,9.843]
[1772641142444,7.36933162,91.46,91.405,53.32298269]
[1772641142650,64.13263409,91.458,91.385,9.845]
[1772641143050,54.29463409,91.458,91.385,9.845]
[1772641143242,9.838,91.455,91.385,9.845]
[1772641143645,61.66396571,91.44,91.355,53.32298269]
[1772641143951,61.66396571,91.42,91.355,55.22685883]
[1772641144149,7.36933162,91.4,91.355,55.22685883]
[1772641144347,7.36933162,91.4,91.355,53.32298269]
[1772641144552,7.36933162,91.44,91.355,53.32298269]
[1772641144753,7.36933162,91.46,91.355,53.32298269]
[1772641144955,7.36933162,91.46,91.392,53.32298269]
[1772641145150,54.29463409,91.459,91.392,53.32298269]
[1772641145853,54.29463409,91.457,91.392,53.32298269]
[1772641146245,54.29463409,91.457,91.394,9.844]
[1772641147354,54.29463409,91.478,91.403,53.32298269]
[1772641147651,7.36933162,91.48,91.422,53.32298269]
[1772641147859,265.9832688,91.495,91.422,53.32298269]
[1772641148158,7.36933162,91.46,91.398,53.32298269]
[1772641148850,54.29463409,91.479,91.398,53.32298269]
[1772641149552,7.36933162,91.5,91.4,7.36933162]
[1772641149757,7.36933162,91.52,91.42,7.36933162]
[1772641149954,7.36933162,91.51,91.449,53.32298269]
[1772641150161,61.66396571,91.51,91.401,53.32298269]
[1772641150364,7.36933162,91.49,91.401,53.32298269]
[1772641150560,61.66396571,91.49,91.401,53.32298269]
[1772641150762,7.36933162,91.51,91.401,53.32298269]
[1772641151166,9.833,91.501,91.433,9.84]
[1772641151560,54.29463409,91.509,91.433,9.84]
[1772641151763,54.29463409,91.509,91.442,9.839]
[1772641151960,54.29463409,91.509,91.427,53.32298269]
[1772641152160,54.29463409,91.507,91.427,53.32298269]
[1772641152471,54.29463409,91.505,91.427,53.32298269]
[1772641152668,54.29463409,91.505,91.438,9.84]
[1772641153368,54.29463409,91.505,91.448,9.839]
[1772641153572,54.29463409,91.505,91.427,53.32298269]
[1772641154667,19.653,91.565,91.38,7.36933162]
[1772641154668,54.29463409,91.549,91.46,7.36933162]
[1772641154867,54.29463409,91.559,91.481,53.32298269]
[1772641155266,54.29463409,91.557,91.481,53.32298269]
[1772641155573,54.29463409,91.555,91.481,53.32298269]
[1772641155772,63.73376915,91.554,91.481,53.32298269]
[1772641156066,54.29463409,91.552,91.463,9.837]
[1772641156271,7.36933162,91.54,91.463,63.15998269]
[1772641156665,61.66396571,91.54,91.463,63.15998269]
[1772641157069,9.831,91.519,91.463,53.32298269]
[1772641157969,61.66396571,91.52,91.442,53.32298269]
[1772641158471,7.36933162,91.56,91.413,54.58342328]
[1772641158472,53.40531971,91.499,91.413,54.58342328]
[1772641159074,9.835,91.482,91.415,54.58342328]
[1772641159973,53.40531971,91.519,91.419,54.58342328]
[1772641160472,9.834,91.494,91.431,9.84]
[1772641160669,9.834,91.494,91.431,64.42342328]
[1772641160865,9.833,91.504,91.439,9.84]
[1772641161372,53.40531971,91.519,91.431,54.58342328]
[1772641161568,60.77465133,91.5,91.431,54.58342328]
[1772641161771,60.77465133,91.5,91.39,7.36933162]
[1772641161772,7.36933162,91.48,91.391,54.58342328]
[1772641161973,60.77465133,91.48,91.391,54.58342328]
[1772641162172,7.36933162,91.46,91.391,54.58342328]
[1772641162473,53.40531971,91.459,91.391,54.58342328]
[1772641162674,9.839,91.447,91.391,54.58342328]
[1772641163670,9.84,91.437,91.377,9.846]
[1772641164171,7.36933162,91.44,91.368,54.58342328]
[1772641164172,9.841,91.428,91.368,54.58342328]
[1772641164371,7.36933162,91.44,91.368,54.58342328]
[1772641164671,60.79086056,91.44,91.368,54.58342328]
[1772641165072,7.38554085,91.46,91.368,54.58342328]
[1772641165271,61.51743869,91.46,91.368,54.58342328]
[1772641165477,9.838,91.453,91.37,53.08677965]
[1772641166171,9.839,91.442,91.37,53.08677965]
[1772641166579,54.13189784,91.439,91.37,53.08677965]
[1772641167171,7.38554085,91.42,91.341,53.08677965]
[1772641167372,54.13189784,91.439,91.347,53.08677965]
[1772641167975,9.838,91.456,91.376,53.08677965]
[1772641168182,7.38554085,91.46,91.376,53.08677965]
[1772641168577,7.38554085,91.48,91.388,53.08677965]
[1772641169369,63.96689784,91.479,91.399,9.844]
[1772641169575,7.38554085,91.46,91.388,53.08677965]
[1772641169975,54.13189784,91.479,91.388,53.08677965]
[1772641170376,54.13189784,91.459,91.368,53.08677965]
[1772641170580,7.38554085,91.46,91.371,53.08677965]
[1772641171279,7.38554085,91.46,91.397,9.844]
[1772641171481,7.38554085,91.49,91.398,53.08677965]
[1772641172181,9.833,91.505,91.423,53.08677965]
[1772641173076,9.834,91.495,91.423,53.08677965]
[1772641173281,9.834,91.495,91.425,53.08677965]
[1772641173683,7.38554085,91.51,91.425,53.08677965]
[1772641174075,61.51743869,91.51,91.425,53.08677965]
[1772641174382,61.51743869,91.51,91.41,7.38554085]
[1772641174383,9.833,91.506,91.428,53.08677965]
[1772641174579,9.45546021,91.509,91.428,53.08677965]
[1772641174980,9.45546021,91.509,91.43,60.4723205]
[1772641175285,7.90223947,91.509,91.43,60.4723205]
[1772641175881,7.90223947,91.509,91.449,53.08677965]
[1772641176082,7.38554085,91.49,91.401,53.08677965]
[1772641176379,9.45884223,91.508,91.436,53.08677965]
[1772641176579,62.03413731,91.509,91.436,53.08677965]
[1772641177180,9.833,91.506,91.438,53.08677965]
[1772641177585,62.03413731,91.509,91.438,53.08677965]
[1772641178183,7.90223947,91.509,91.438,53.08677965]
[1772641178384,7.90223947,91.509,91.448,53.08677965]
[1772641179786,7.38554085,91.55,91.448,53.08677965]
[1772641179980,70.96684889,91.55,91.448,53.08677965]
[1772641180182,63.58130804,91.549,91.448,53.08677965]
[1772641180382,63.58130804,91.548,91.448,53.08677965]
[1772641180679,9.44536017,91.547,91.46,53.08677965]
[1772641180884,54.13189784,91.546,91.46,53.08677965]
[1772641181079,54.13189784,91.546,91.465,53.08677965]
[1772641181080,7.38554085,91.53,91.465,53.08677965]
[1772641181285,54.13189784,91.546,91.465,53.08677965]
[1772641181784,54.13189784,91.544,91.465,53.08677965]
[1772641182188,63.95989784,91.544,91.47,53.08677965]
[1772641182686,7.38554085,91.55,91.488,53.08677965]
[1772641182885,61.51743869,91.55,91.441,53.08677965]
[1772641183088,61.51743869,91.53,91.441,53.08677965]
[1772641183282,71.34743869,91.53,91.461,9.837]
[1772641183983,71.34743869,91.53,91.46,53.08677965]
[1772641183984,9.831,91.518,91.46,53.08677965]
[1772641184387,9.83,91.527,91.46,53.08677965]
[1772641184583,7.38554085,91.51,91.46,53.08677965]
[1772641185490,9.832,91.509,91.46,53.08677965]
[1772641185688,54.13189784,91.508,91.434,53.08677965]
[1772641186087,7.38554085,91.51,91.436,53.08677965]
[1772641187489,7.38554085,91.51,91.454,53.08677965]
[1772641188595,7.38554085,91.51,91.456,9.838]
[1772641188785,61.73010354,91.51,91.4,19.688]
[1772641188984,61.73010354,91.51,91.431,52.8271729]
[1772641189387,54.34456269,91.507,91.431,52.8271729]
[1772641189788,7.38554085,91.51,91.431,52.8271729]
[1772641189986,7.38554085,91.53,91.459,52.8271729]
[1772641190988,54.34456269,91.544,91.459,52.8271729]
[1772641191192,54.34456269,91.563,91.475,52.8271729]
[1772641191399,9.44076195,91.562,91.475,52.8271729]
[1772641191585,54.34456269,91.549,91.475,52.8271729]
[1772641191791,54.34456269,91.529,91.431,52.8271729]
[1772641192187,54.34456269,91.529,91.463,9.837]
[1772641192388,54.34456269,91.529,91.463,62.6641729]
[1772641192694,9.831,91.519,91.463,52.8271729]
[1772641193093,54.34456269,91.529,91.463,52.8271729]
[1772641193294,9.831,91.522,91.463,52.8271729]
[1772641193695,64.17556269,91.522,91.463,52.8271729]
[1772641193891,64.17556269,91.522,91.42,7.38554085]
[1772641193892,7.38554085,91.51,91.444,52.8271729]
[1772641194096,7.38554085,91.51,91.4,19.688]
[1772641194097,7.38554085,91.49,91.408,52.8271729]
[1772641194295,7.38554085,91.49,91.429,9.841]
[1772641194799,7.38554085,91.49,91.412,52.8271729]
[1772641194800,61.73010354,91.49,91.412,52.8271729]
[1772641195796,7.38554085,91.47,91.412,52.8271729]
[1772641196902,61.73010354,91.47,91.361,52.8271729]
[1772641197096,61.73010354,91.47,91.393,9.845]
[1772641197302,61.73010354,91.45,91.387,52.8271729]
[1772641197500,61.73010354,91.45,91.346,52.8271729]
[1772641197698,61.73010354,91.45,91.376,52.8271729]
[1772641198805,7.38554085,91.47,91.381,52.8271729]
[1772641199207,54.34456269,91.469,91.381,52.8271729]
[1772641199405,54.34456269,91.49,91.391,52.8271729]
[1772641199605,61.73010354,91.49,91.391,52.8271729]
[1772641200206,54.34456269,91.488,91.391,52.8271729]
[1772641200499,9.835,91.481,91.416,9.842]
[1772641200801,54.34456269,91.488,91.416,52.8271729]
[1772641201007,61.73010354,91.51,91.416,52.8271729]
[1772641201406,9.832,91.507,91.442,9.839]
[1772641201709,61.73010354,91.51,91.442,62.6661729]
[1772641202810,61.73010354,91.51,91.442,52.8271729]
[1772641203106,61.73010354,91.49,91.421,52.8271729]
[1772641203310,61.73010354,91.49,91.421,43.9471729]
[1772641203509,7.38554085,91.47,91.372,13.51981768]
[1772641203700,7.38554085,91.47,91.37,7.38554085]
[1772641203905,54.34456269,91.478,91.37,7.38554085]
[1772641204207,64.17956269,91.478,91.407,9.843]
[1772641204405,54.34456269,91.478,91.37,7.38554085]
[1772641204804,9.836,91.471,91.406,9.843]
[1772641205306,9.836,91.471,91.346,465.924]
[1772641205307,54.34456269,91.478,91.424,9.841]
[1772641205506,54.34456269,91.478,91.417,52.8271729]
[1772641205908,54.34456269,91.478,91.426,9.841]
[1772641206114,54.34456269,91.478,91.371,19.694]
[1772641206115,54.34456269,91.478,91.391,52.8271729]
[1772641206305,54.34456269,91.478,91.41,9.843]
[1772641206306,9.836,91.477,91.41,9.843]
[1772641207312,9.836,91.477,91.41,62.6701729]
[1772641207706,54.34456269,91.478,91.41,62.6701729]
[1772641207707,7.38554085,91.49,91.41,52.8271729]
[1772641207908,7.38554085,91.5,91.41,52.8271729]
[1772641208105,54.34456269,91.501,91.41,60.21271375]
[1772641208309,9.832,91.506,91.445,52.8271729]
[1772641208808,54.34456269,91.519,91.445,52.8271729]
[1772641209013,7.38554085,91.54,91.445,52.8271729]
[1772641209212,7.38554085,91.54,91.451,52.8271729]
[1772641209517,54.34456269,91.537,91.472,52.8271729]
[1772641209911,9.831,91.52,91.472,52.8271729]
[1772641210111,54.34456269,91.534,91.451,52.8271729]
[1772641211212,9.83,91.533,91.471,9.836]
[1772641211911,54.34456269,91.554,91.479,52.8271729]
[1772641212110,63.89388571,91.553,91.479,52.8271729]
[1772641212311,9.831,91.518,91.458,52.8271729]
[1772641212507,7.38554085,91.5,91.417,52.8271729]
[1772641212814,7.38554085,91.48,91.429,9.841]
[1772641213010,7.38554085,91.48,91.44,13.53877257]
[1772641213916,54.34456269,91.5,91.426,20.29719878]
[1772641213917,7.38554085,91.46,91.426,20.29719878]
[1772641214313,71.56710354,91.46,91.398,27.0356899]
[1772641214720,54.34456269,91.46,91.398,27.0356899]
[1772641214917,54.34456269,91.46,91.399,62.6711729]
[1772641215117,7.38554085,91.45,91.399,52.8271729]
[1772641215318,54.34456269,91.46,91.399,52.8271729]
[1772641215522,54.34456269,91.469,91.39,52.8271729]
[1772641215721,61.73010354,91.45,91.361,52.8271729]
[1772641216019,61.73010354,91.45,91.395,9.844]
[1772641216219,61.73010354,91.45,91.389,52.8271729]
[1772641216723,7.38554085,91.45,91.389,52.8271729]
[1772641217218,54.34456269,91.469,91.409,9.843]
[1772641217420,7.38554085,91.47,91.389,52.8271729]
[1772641217623,16.91992684,91.49,91.401,52.8271729]
[1772641218424,9.834,91.488,91.418,9.842]
[1772641218625,7.38554085,91.49,91.418,52.41029572]
[1772641219426,7.38554085,91.49,91.43,9.841]
[1772641219725,7.38554085,91.49,91.418,52.41029572]
[1772641219918,49.89271151,91.512,91.421,52.41029572]
[1772641219919,7.38554085,91.51,91.421,52.41029572]
[1772641220116,7.38554085,91.51,91.451,9.838]
[1772641220321,7.38554085,91.53,91.444,52.41029572]
[1772641220522,57.27825236,91.53,91.444,52.41029572]
[1772641220723,49.89271151,91.528,91.444,52.41029572]
[1772641220919,19.3664006,91.527,91.461,9.837]
[1772641221124,69.25911211,91.527,91.461,9.837]
[1772641221320,49.89271151,91.509,91.444,52.41029572]
[1772641221629,49.89271151,91.507,91.421,52.41029572]
[1772641221826,9.833,91.501,91.428,9.841]
[1772641222029,9.833,91.501,91.421,52.41029572]
[1772641222030,49.89271151,91.489,91.421,52.41029572]
[1772641222524,49.89271151,91.486,91.417,9.842]
[1772641222727,49.89271151,91.484,91.417,9.842]
[1772641222922,59.42960726,91.483,91.417,9.842]
[1772641223122,59.42960726,91.482,91.417,9.842]
[1772641223322,9.53689575,91.481,91.417,9.842]
[1772641223522,9.835,91.48,91.417,9.842]
[1772641223930,7.38554085,91.47,91.407,9.843]
[1772641224532,9.836,91.469,91.401,52.41029572]
[1772641224728,59.72871151,91.469,91.401,52.41029572]
[1772641224936,49.89271151,91.467,91.401,52.41029572]
[1772641225126,7.38554085,91.45,91.389,52.41029572]
[1772641225329,49.89271151,91.486,91.389,52.41029572]
[1772641225526,49.83029049,91.459,91.389,52.41029572]
[1772641225832,7.38554085,91.46,91.389,52.41029572]
[1772641226337,7.38554085,91.46,91.409,9.843]
[1772641226637,7.38170873,91.46,91.389,52.41029572]
[1772641227738,57.21199922,91.46,91.389,52.41029572]
[1772641228338,49.83029049,91.439,91.366,53.04033535]
[1772641228530,7.38170873,91.42,91.341,53.04033535]
[1772641229040,49.83029049,91.437,91.341,53.04033535]
[1772641230136,49.83029049,91.437,91.375,9.847]
[1772641230335,49.83029049,91.437,91.366,53.04033535]
[1772641230533,49.83029049,91.458,91.366,53.04033535]
[1772641230727,7.38170873,91.44,91.366,53.04033535]
[1772641230927,57.21199922,91.44,91.366,53.04033535]
[1772641231128,9.84,91.433,91.366,53.04033535]
[1772641232234,9.84,91.433,91.368,9.847]
[1772641232435,57.21199922,91.44,91.366,53.04033535]
[1772641232632,7.38170873,91.44,91.366,53.04033535]
[1772641233241,57.21199922,91.44,91.366,53.04033535]
[1772641233441,9.84,91.438,91.369,9.847]
[1772641233734,9.84,91.438,91.366,53.04033535]
[1772641233939,7.38170873,91.44,91.366,53.04033535]
[1772641234442,57.21199922,91.44,91.377,9.846]
[1772641235442,57.21199922,91.44,91.368,9.847]
[1772641235746,57.21199922,91.44,91.366,53.04033535]
[1772641236845,49.83029049,91.437,91.373,9.847]
[1772641237046,49.83029049,91.437,91.366,53.04033535]
[1772641237444,49.83029049,91.437,91.381,9.846]
[1772641237747,49.83029049,91.437,91.366,53.04033535]
[1772641237943,49.83029049,91.461,91.395,53.04033535]
[1772641238351,7.38170873,91.47,91.395,53.04033535]
[1772641238642,7.38170873,91.49,91.416,53.04033535]
[1772641239447,9.834,91.488,91.416,53.04033535]
[1772641239947,7.38170873,91.47,91.416,53.04033535]
[1772641240248,59.34486944,91.488,91.418,9.842]
[1772641240448,59.34486944,91.487,91.418,9.842]
[1772641240648,9.50979253,91.486,91.418,9.842]
[1772641240851,9.835,91.479,91.416,53.04033535]
[1772641241452,9.835,91.479,91.39,7.38170873]
[1772641241453,9.837,91.461,91.4,62.88433535]
[1772641241745,57.21199922,91.46,91.351,53.04033535]
[1772641242139,7.38170873,91.44,91.375,53.04033535]
[1772641242940,7.38170873,91.44,91.385,9.845]
[1772641243346,7.38170873,91.44,91.375,53.04033535]
[1772641244447,49.83029049,91.456,91.375,53.04033535]
[1772641244955,7.38170873,91.44,91.375,53.04033535]
[1772641245348,57.21199922,91.44,91.375,53.04033535]
[1772641246653,49.83029049,91.46,91.375,53.04033535]